fUSD/lending_fUSD_20260319
["ID","MTS","AMOUNT","RATE_DAILY","PERIOD"]
[408589310,1773905465177,-1200.0,0.00021333,2]
[408589311,1773905465186,-500.0,0.00021333,2]
[408589312,1773905465195,-500.0,0.00021333,2]
[408589313,1773905465204,-500.0,0.00021333,2]
[408589314,1773905465214,-500.0,0.00021333,2]
[408589315,1773905465223,-500.0,0.00021333,2]
[408589316,1773905465232,-1200.0,0.00021333,2]
[408589317,1773905465241,-500.0,0.00021333,2]
[408589318,1773905465250,-500.0,0.00021333,2]
[408589319,1773905465258,-500.0,0.00021333,2]
[408589320,1773905465267,-500.0,0.00021333,2]
[408589321,1773905465277,-1200.0,0.00021333,2]
[408589322,1773905465286,-750.27138424,0.00021333,2]
[408589323,1773905465295,-900.0,0.00021333,2]
[408589324,1773905465304,-500.0,0.00021333,2]
[408589325,1773905465313,-500.0,0.00021333,2]
[408589326,1773905465322,-500.0,0.00021333,2]
[408589327,1773905465330,-900.0,0.00021333,2]
[408589328,1773905465340,-500.0,0.00021333,2]
[408589329,1773905465348,-500.0,0.00021333,2]
[408589330,1773905465357,-500.0,0.00021333,2]
[408589331,1773905465366,-1200.0,0.00021333,2]
[408589332,1773905465375,-373.07221866,0.00021333,2]
[408589333,1773905465384,-500.0,0.00021333,2]
[408589334,1773905465393,-900.0,0.00021333,2]
[408589335,1773905465402,-500.0,0.00021333,2]
[408589336,1773905465411,-500.0,0.00021333,2]
[408589337,1773905465420,-500.0,0.00021333,2]
[408589338,1773905465430,-1200.0,0.00021333,2]
[408589339,1773905465440,-500.0,0.00021333,2]
[408589340,1773905465450,-900.0,0.00021333,2]
[408589341,1773905465459,-1000.0,0.00021333,2]
[408589342,1773905465469,-500.0,0.00021333,2]
[408589343,1773905465479,-1200.0,0.00021333,2]
[408589344,1773905465488,-1000.0,0.00021333,2]
[408589345,1773905465498,-500.0,0.00021333,2]
[408589346,1773905465508,-900.0,0.00021333,2]
[408589347,1773905465517,-500.0,0.00021333,2]
[408589348,1773905465526,-1200.0,0.00021333,2]
[408589349,1773905465536,-1000.0,0.00021333,2]
[408589350,1773905465548,-900.0,0.00021333,2]
[408589351,1773905465557,-500.0,0.00021333,2]
[408589352,1773905465566,-500.0,0.00021333,2]
[408589353,1773905465575,-1200.0,0.00021333,2]
[408589354,1773905465585,-1000.0,0.00021333,2]
[408589355,1773905465594,-500.0,0.00021333,2]
[408589356,1773905465602,-900.0,0.00021333,2]
[408589357,1773905465613,-500.0,0.00021333,2]
[408589358,1773905465622,-1200.0,0.00021333,2]
[408589359,1773905465631,-1000.0,0.00021333,2]
[408589360,1773905465639,-500.0,0.00021333,2]
[408589361,1773905465648,-900.0,0.00021333,2]
[408589362,1773905465657,-500.0,0.00021333,2]
[408589363,1773905465666,-500.0,0.00021333,2]
[408589364,1773905465676,-500.0,0.00021333,2]
[408589365,1773905465685,-900.0,0.00021333,2]
[408589366,1773905465694,-1000.0,0.00021333,2]
[408589367,1773905465702,-500.0,0.00021333,2]
[408589368,1773905465711,-500.0,0.00021333,2]
[408589369,1773905465721,-900.0,0.00021333,2]
[408589370,1773905465730,-500.0,0.00021333,2]
[408589371,1773905465738,-1000.0,0.00021333,2]
[408589372,1773905465747,-500.0,0.00021333,2]
[408589373,1773905465756,-346.07913606,0.00021333,2]
[408589374,1773905465764,-500.0,0.00021333,2]
[408589375,1773905465773,-900.0,0.00021333,2]
[408589376,1773905465782,-1000.0,0.00021333,2]
[408589377,1773905465792,-500.0,0.00021333,2]
[408589378,1773905465801,-500.0,0.00021333,2]
[408589379,1773905465809,-900.0,0.00021333,2]
[408589380,1773905465818,-1000.0,0.00021333,2]
[408589381,1773905465827,-500.0,0.00021333,2]
[408589382,1773905465836,-500.0,0.00021333,2]
[408589383,1773905465844,-500.0,0.00021333,2]
[408589384,1773905465854,-900.0,0.00021333,2]
[408589385,1773905465862,-1000.0,0.00021333,2]
[408589386,1773905465871,-500.0,0.00021333,2]
[408589387,1773905465881,-500.0,0.00021333,2]
[408589388,1773905465890,-900.0,0.00021333,2]
[408589389,1773905465899,-500.0,0.00021333,2]
[408589390,1773905465909,-1000.0,0.00021333,2]
[408589391,1773905465918,-500.0,0.00021333,2]
[408589392,1773905465928,-500.0,0.00021333,2]
[408589393,1773905465938,-1000.0,0.00021333,2]
[408589394,1773905465947,-501.00369045,0.00021333,2]
[408589395,1773905465956,-500.0,0.00021333,2]
[408589396,1773905465966,-1000.0,0.00021333,2]
[408589397,1773905465976,-600.0,0.00021333,2]
[408589398,1773905465985,-500.0,0.00021333,2]
[408589399,1773905465994,-1000.0,0.00021333,2]
[408589400,1773905466003,-600.0,0.00021333,2]
[408589401,1773905466013,-500.0,0.00021333,2]
[408589402,1773905466022,-600.0,0.00021333,2]
[408589403,1773905466031,-500.0,0.00021333,2]
[408589404,1773905466040,-600.0,0.00021333,2]
[408589405,1773905466050,-500.0,0.00021333,2]
[408589406,1773905466059,-600.0,0.00021333,2]
[408589407,1773905466068,-500.0,0.00021333,2]
[408589408,1773905466078,-600.0,0.00021333,2]
[408589409,1773905466087,-500.0,0.00021333,2]
[408589410,1773905466097,-600.0,0.00021333,2]
[408589411,1773905466106,-600.0,0.00021333,2]
[408589412,1773905466115,-600.0,0.00021333,2]
[408589413,1773905466124,-600.0,0.00021333,2]
[408589414,1773905466133,-600.0,0.00021333,2]
[408589415,1773905466142,-600.0,0.00021333,2]
[408589416,1773905466151,-600.0,0.00021333,2]
[408589417,1773905466160,-500.0,0.00021333,2]
[408589418,1773905466169,-500.0,0.00021333,2]
[408589419,1773905466179,-500.0,0.00021333,2]
[408589420,1773905466188,-500.0,0.00021333,2]
[408589421,1773905466198,-500.0,0.00021333,2]
[408589422,1773905466207,-500.0,0.00021333,2]
[408589423,1773905466217,-500.0,0.00021333,2]
[408589424,1773905466226,-155.21433051,0.00021333,2]
[408589425,1773905466235,-595.89371559,0.00021333,2]
[408589426,1773905466244,-510.18801387,0.00021333,2]
[408589427,1773905466253,-500.0,0.00021333,2]
[408589428,1773905466262,-6421.12,0.0002137,2]
[408589429,1773905466272,-550.0,0.0002137,2]
[408589430,1773905466281,-550.0,0.0002137,2]
[408589431,1773905466290,-8581.87,0.000214,2]
[408589432,1773905466299,-4095.59,0.000214,2]
[408589433,1773905466308,-501.0,0.00021463,9]
[408589434,1773905466317,-223.5434513,0.000215,2]
[408589435,1773905466326,-57909.64261759,0.000215,2]
[408589436,1773905466335,-248.518701,0.00021576,7]
[408589437,1773905466343,-5072.64,0.000216,2]
[408589438,1773905466352,-7697.38,0.000216,2]
[408589439,1773905466361,-1261.0,0.00021804,2]
[408589440,1773905466370,-150.0,0.00021804,2]
[408589441,1773905466379,-1215.0,0.00021804,2]
[408589442,1773905466388,-924.0,0.00021804,2]
[408589443,1773905466397,-150.0,0.00021834,2]
[408589444,1773905466406,-1000.0,0.00021918,2]
[408589445,1773905466415,-1000.0,0.00021918,2]
[408589446,1773905466426,-1000.0,0.00021918,2]
[408589447,1773905466435,-1000.0,0.00021918,2]
[408589448,1773905466444,-623.0,0.00021918,2]
[408589449,1773905466453,-5000.0,0.00021918,2]
[408589450,1773905466462,-3053.7,0.00021918,2]
[408589451,1773905466471,-2107.5,0.00021918,2]
[408589452,1773905466480,-152.289895,0.00021918,2]
[408589453,1773905466489,-151.0,0.00021918,2]
[408589454,1773905466498,-151.0,0.00021918,2]
[408589455,1773905466508,-151.0,0.00021918,2]
[408589456,1773905466516,-151.0,0.00021918,2]
[408589457,1773905466525,-151.0,0.00021918,2]
[408589458,1773905466535,-151.0,0.00021918,2]
[408589459,1773905466547,-151.0,0.00021918,2]
[408589460,1773905466557,-151.0,0.00021918,2]
[408589461,1773905466565,-151.0,0.00021918,2]
[408589462,1773905466574,-151.0,0.00021918,2]
[408589463,1773905466585,-151.0,0.00021918,2]
[408589464,1773905466595,-151.0,0.00021918,2]
[408589465,1773905466604,-269.817779,0.00021918,2]
[408589466,1773905466615,-1000.0,0.00021918,2]
[408589467,1773905466624,-1000.0,0.00021918,2]
[408589468,1773905466634,-1000.0,0.00021918,2]
[408589469,1773905466643,-406.88367506,0.00021918,2]
[408589470,1773905466653,-650.0,0.00021918,2]
[408589471,1773905466664,-1000.0,0.00021918,2]
[408589472,1773905466674,-1000.0,0.00021918,2]
[408589473,1773905466686,-1000.0,0.00021918,2]
[408589474,1773905466697,-1000.0,0.00021918,2]
[408589475,1773905466708,-1000.0,0.00021918,2]
[408589476,1773905466719,-1000.0,0.00021918,2]
[408589477,1773905466729,-907.47383763,0.00021918,2]
[408589478,1773905466739,-150.0,0.00021918,2]
[408589479,1773905466748,-650.0,0.00021918,2]
[408589480,1773905466759,-190.15238611,0.00021918,2]
[408589481,1773905466770,-500.0,0.00021918,2]
[408589482,1773905466780,-500.0,0.00021918,2]
[408589483,1773905466791,-500.0,0.00021918,2]
[408589484,1773905466803,-214.67917954,0.00021918,2]
[408589485,1773905466814,-150.0,0.00021918,2]
[408589486,1773905466825,-150.0,0.00021918,2]
[408589487,1773905466834,-210.95307303,0.00021918,2]
[408589488,1773905466844,-205.42,0.00021979,2]
[408589489,1773905466853,-2500.0,0.00022,2]
[408589490,1773905466862,-2012.74716964,0.00022,2]
[408589491,1773905466872,-164.92,0.00022,2]
[408589492,1773905466880,-160.0,0.00022,2]
[408589493,1773905466889,-805.23521501,0.00022,7]
[408589494,1773905466898,-656.02222549,0.00022,2]
[408589495,1773905466909,-372636.73624598,0.00022,4]
[408589496,1773905466918,-151.0,0.00022,2]
[408589497,1773905466930,-151.0,0.00022,2]
[408589498,1773905466940,-151.0,0.00022,2]
[408589499,1773905466949,-151.0,0.00022,2]
[408589500,1773905466959,-168.475167,0.00022,2]
[408589501,1773905466968,-151.0,0.00022,2]
[408589502,1773905466977,-151.0,0.00022,2]
[408589503,1773905466987,-151.0,0.00022,2]
[408589504,1773905466996,-151.0,0.00022,2]
[408589505,1773905467006,-151.0,0.00022,2]
[408589506,1773905467015,-151.0,0.00022,2]
[408589507,1773905467025,-151.0,0.00022,2]
[408589508,1773905467034,-151.0,0.00022,2]
[408589509,1773905467043,-151.0,0.00022,2]
[408589510,1773905467053,-151.0,0.00022,2]
[408589511,1773905467062,-151.0,0.00022,2]
[408589512,1773905467072,-151.0,0.00022,2]
[408589513,1773905467082,-151.0,0.00022,2]
[408589514,1773905467092,-151.0,0.00022,2]
[408589515,1773905467102,-151.0,0.00022,2]
[408589516,1773905467112,-151.0,0.00022,2]
[408589517,1773905467122,-151.0,0.00022,2]
[408589518,1773905467131,-151.0,0.00022,2]
[408589519,1773905467141,-151.0,0.00022,2]
[408589520,1773905467151,-151.0,0.00022,2]
[408589521,1773905467162,-151.0,0.00022,2]
[408589522,1773905467173,-151.0,0.00022,2]
[408589523,1773905467186,-151.0,0.00022,2]
[408589524,1773905467195,-151.0,0.00022,2]
[408589525,1773905467206,-151.0,0.00022,2]
[408589526,1773905467216,-151.0,0.00022,2]
[408589527,1773905467225,-151.0,0.00022,2]
[408589528,1773905467235,-151.0,0.00022,2]
[408589529,1773905467244,-151.0,0.00022,2]
[408589530,1773905467253,-2262.03661974,0.00022,30]
[408589531,1773905467263,-415.38,0.00022,30]
[408589532,1773905467273,-497.59525623,0.000221,2]
[408589533,1773905467282,-241.82036502,0.0002211,2]
[408589534,1773905467292,-501.0,0.00022276,9]
[408589535,1773905467302,-17449.0,0.00022398,2]
[408589536,1773905467311,-5000.0,0.00022463,7]
[408589537,1773905467321,-399.934,0.00022466,2]
[408589538,1773905467331,-750.0,0.00022466,2]
[408589539,1773905467340,-750.0,0.00022466,2]
[408589540,1773905467350,-35738.15087633,0.000225,2]
[408589541,1773905467359,-2900.0,0.000225,15]
[408589542,1773905467369,-3628.26675288,0.000226,2]
[408589543,1773905467378,-166.84,0.00022603,2]
[408589544,1773905467388,-440.95,0.00022689,2]
[408589545,1773905467397,-450.68,0.00022689,2]
[408589546,1773905467407,-405.21,0.00022689,2]
[408589547,1773905467416,-365.95,0.00022689,2]
[408589548,1773905467425,-1007.95,0.000227,7]
[408589549,1773905467435,-3299.09,0.000227,7]
[408589550,1773905467444,-526.64158716,0.0002271,2]
[408589551,1773905467454,-278.41,0.00022711,2]
[408589552,1773905467464,-506.03,0.00022711,2]
[408589553,1773905467474,-2859.14,0.0002274,2]
[408589554,1773905467483,-150.0,0.00022827,7]
[408589555,1773905467492,-288.554882,0.00022829,7]
[408589556,1773905467502,-150.0,0.00022834,2]
[408589557,1773905467511,-188.675206,0.00022994,14]
[408589558,1773905467520,-293398.1838051,0.00023,2]
[408589559,1773905467529,-151.0,0.00023,2]
[408589560,1773905467540,-5000.0,0.00023,7]
[408589561,1773905467551,-12392.85278125,0.00023,2]
[408589562,1773905467561,-641.97293222,0.00023,7]
[408589563,1773905467570,-3346.16035367,0.00023,2]
[408589564,1773905467580,-979.16666667,0.00023,3]
[408589565,1773905467590,-450.0,0.00023,2]
[408589566,1773905467601,-8581.87,0.00023,7]
[408589567,1773905467611,-4095.59,0.00023,2]
[408589568,1773905467622,-416.0,0.00023,7]
[408589569,1773905467632,-211.35823977,0.00023014,2]
[408589570,1773905467642,-850.0,0.00023014,2]
[408589571,1773905467651,-450.68,0.00023067,2]
[408589572,1773905467661,-501.0,0.00023089,10]
[408589573,1773905467671,-162.071943,0.00023122,14]
[408589574,1773905467681,-2506.34974777,0.0002314,2]
[408589575,1773905467691,-1500.0,0.00023175,2]
[408589576,1773905467701,-902.44181627,0.000232,2]
[408589577,1773905467711,-5072.64,0.000232,7]
[408589578,1773905467721,-7697.38,0.000232,7]
[408589579,1773905467731,-732.821834,0.00023254,14]
[408589580,1773905467843,-405.21,0.00023256,2]
[408589581,1773905467861,-416.0,0.00023288,7]
[408589582,1773905467871,-308.87496,0.00023324,14]
[408589583,1773905467880,-450.68,0.00023445,2]
[408589584,1773905467890,-200.0,0.000235,2]
[408589585,1773905467899,-1309.526292,0.0002352,14]
[408589586,1773905467909,-950.0,0.00023562,2]
[408589587,1773905467919,-440.96453338,0.00023824,2]
[408589588,1773905467930,-450.68524769,0.00023824,2]
[408589589,1773905467940,-405.22881709,0.00023824,2]
[408589590,1773905467950,-150.0,0.00023834,2]
[408589591,1773905467960,-501.0,0.00023902,11]
[408589592,1773905467970,-260.0,0.00023908,2]
[408589593,1773905467979,-3600.0,0.00024,2]
[408589594,1773905467989,-1028.55872711,0.00024,2]
[408589595,1773905467999,-1243.57541526,0.00024,2]
[408589596,1773905468008,-5000.0,0.00024,7]
[408589597,1773905468017,-10478.12618656,0.00024,14]
[408589598,1773905468026,-979.16666667,0.00024,7]
[408589599,1773905468036,-979.16666667,0.00024,7]
[408589600,1773905468045,-979.16666667,0.00024,7]
[408589601,1773905468054,-1007.95,0.00024,7]
[408589602,1773905468064,-3299.09,0.00024,7]
[408589603,1773905468073,-571.035625,0.00024068,14]
[408589604,1773905468083,-2107.5,0.00024081,2]
[408589605,1773905468092,-1050.0,0.0002411,2]
[408589606,1773905468102,-2567.672885,0.00024131,2]
[408589607,1773905468111,-1518.903636,0.00024131,2]
[408589608,1773905468120,-416.0,0.00024164,7]
[408589609,1773905468129,-3722.19297196,0.0002421,2]
[408589610,1773905468140,-424.86057948,0.0002421,2]
[408589611,1773905468150,-1044.0,0.0002422,2]
[408589612,1773905468160,-3512.0,0.0002422,2]
[408589613,1773905468169,-2465.0,0.0002422,2]
[408589614,1773905468179,-8581.87,0.000243,7]
[408589615,1773905468188,-4095.59,0.000243,2]
[408589616,1773905468197,-150.0,0.00024315,2]
[408589617,1773905468206,-150.0,0.00024315,2]
[408589618,1773905468216,-150.0,0.00024315,2]
[408589619,1773905468225,-150.0,0.00024315,2]
[408589620,1773905468234,-150.0,0.00024315,2]
[408589621,1773905468244,-626.007006,0.00024439,14]
[408589622,1773905468253,-1028.09349452,0.00024658,2]
[408589623,1773905468263,-872.57,0.00024658,2]
[408589624,1773905468273,-1000.0,0.00024658,2]
[408589625,1773905468282,-151.0,0.00024658,2]
[408589626,1773905468292,-151.0,0.00024658,2]
[408589627,1773905468301,-151.0,0.00024658,2]
[408589628,1773905468310,-151.0,0.00024658,2]
[408589629,1773905468319,-158.342271,0.00024658,2]
[408589630,1773905468329,-151.0,0.00024658,2]
[408589631,1773905468338,-151.0,0.00024658,2]
[408589632,1773905468348,-151.0,0.00024658,2]
[408589633,1773905468358,-151.0,0.00024658,2]
[408589634,1773905468367,-150.0,0.00024658,2]
[408589635,1773905468376,-178.90038,0.00024696,14]
[408589636,1773905468385,-5072.64,0.000247,7]
[408589637,1773905468395,-7697.38,0.000247,7]
[408589638,1773905468405,-1000.0,0.00024702,2]
[408589639,1773905468414,-1000.0,0.00024702,2]
[408589640,1773905468424,-501.0,0.00024715,11]
[408589641,1773905468434,-255.044259,0.00024728,14]
[408589642,1773905468444,-1000.0,0.00024738,2]
[408589643,1773905468458,-1261.0,0.00024804,2]
[408589644,1773905468468,-150.0,0.00024804,2]
[408589645,1773905468478,-1215.0,0.00024804,2]
[408589646,1773905468487,-924.0,0.00024804,2]
[408589647,1773905468497,-2889.19,0.00024819,2]
[408589648,1773905468508,-451.886012,0.00024821,14]
[408589649,1773905468519,-150.0,0.00024834,2]
[408589650,1773905468529,-260.0,0.00024864,2]
[408589651,1773905468541,-151.0,0.00024897,7]
[408589652,1773905468552,-151.0,0.00024897,7]
[408589653,1773905468562,-151.0,0.000249,2]
[408589654,1773905468572,-151.0,0.000249,2]
[408589655,1773905468583,-151.0,0.000249,2]
[408589656,1773905468593,-151.0,0.000249,2]
[408589657,1773905468603,-151.0,0.000249,2]
[408589658,1773905468615,-151.0,0.000249,2]
[408589659,1773905468625,-151.0,0.000249,2]
[408589660,1773905468635,-151.0,0.000249,2]
[408589661,1773905468645,-151.0,0.000249,2]
[408589662,1773905468654,-151.0,0.000249,2]
[408589663,1773905468664,-166.392178,0.000249,2]
[408589664,1773905468673,-166.392178,0.000249,2]
[408589665,1773905468684,-151.0,0.000249,2]
[408589666,1773905468694,-166.392178,0.000249,2]
[408589667,1773905468704,-166.392178,0.000249,2]
[408589668,1773905468713,-151.0,0.000249,2]
[408589669,1773905468723,-181.764695,0.000249,2]
[408589670,1773905468733,-181.764695,0.000249,2]
[408589671,1773905468743,-181.764695,0.000249,2]
[408589672,1773905468753,-181.764695,0.000249,2]
[408589673,1773905468763,-151.0,0.000249,2]
[408589674,1773905468773,-151.0,0.000249,2]
[408589675,1773905468783,-151.0,0.000249,2]
[408589676,1773905468793,-151.0,0.000249,2]
[408589677,1773905468803,-151.0,0.000249,2]
[408589678,1773905468817,-151.0,0.000249,2]
[408589679,1773905468827,-151.0,0.000249,2]
[408589680,1773905468837,-252.360534,0.000249,2]
[408589681,1773905468847,-151.0,0.000249,2]
[408589682,1773905468857,-252.360534,0.000249,2]
[408589683,1773905468867,-151.0,0.000249,2]
[408589684,1773905468877,-252.360534,0.000249,2]
[408589685,1773905468887,-252.360534,0.000249,2]
[408589686,1773905468898,-151.0,0.000249,2]
[408589687,1773905468907,-151.0,0.000249,2]
[408589688,1773905468917,-151.0,0.000249,2]
[408589689,1773905468928,-284.989144,0.000249,2]
[408589690,1773905468938,-151.0,0.000249,2]
[408589691,1773905468948,-151.0,0.000249,2]
[408589692,1773905468958,-258.557348,0.000249,2]
[408589693,1773905468968,-151.0,0.000249,2]
[408589694,1773905468978,-151.0,0.000249,2]
[408589695,1773905468988,-151.0,0.000249,2]
[408589696,1773905468998,-151.0,0.000249,2]
[408589697,1773905469009,-151.0,0.000249,2]
[408589698,1773905469018,-168.103594,0.000249,2]
[408589699,1773905469028,-151.0,0.000249,2]
[408589700,1773905469038,-154.275229,0.000249,2]
[408589701,1773905469048,-151.0,0.000249,2]
[408589702,1773905469058,-151.0,0.000249,2]
[408589703,1773905469068,-151.0,0.000249,2]
[408589704,1773905469078,-151.0,0.000249,2]
[408589705,1773905469089,-151.0,0.000249,2]
[408589706,1773905469098,-151.0,0.000249,2]
[408589707,1773905469108,-499.928054,0.000249,2]
[408589708,1773905469118,-151.0,0.000249,2]
[408589709,1773905469128,-499.928054,0.000249,2]
[408589710,1773905469138,-151.0,0.000249,2]
[408589711,1773905469148,-499.928054,0.000249,2]
[408589712,1773905469157,-151.0,0.000249,2]
[408589713,1773905469167,-151.0,0.000249,2]
[408589714,1773905469180,-151.0,0.000249,2]
[408589715,1773905469191,-151.0,0.000249,2]
[408589716,1773905469201,-499.928054,0.000249,2]
[408589717,1773905469212,-151.0,0.000249,2]
[408589718,1773905469222,-151.0,0.000249,2]
[408589719,1773905469233,-151.0,0.000249,2]
[408589720,1773905469243,-188.0,0.000249,2]
[408589721,1773905469253,-151.0,0.000249,2]
[408589722,1773905469263,-151.0,0.000249,2]
[408589723,1773905469272,-189.183701,0.000249,2]
[408589724,1773905469282,-151.0,0.000249,2]
[408589725,1773905469292,-189.183701,0.000249,2]
[408589726,1773905469302,-189.183701,0.000249,2]
[408589727,1773905469312,-189.183701,0.000249,2]
[408589728,1773905469322,-151.0,0.000249,2]
[408589729,1773905469332,-151.0,0.000249,2]
[408589730,1773905469341,-151.0,0.000249,2]
[408589731,1773905469351,-151.0,0.000249,2]
[408589732,1773905469361,-613171.846045,0.000249,2]
[408589733,1773905469370,-151.0,0.000249,2]
[408589734,1773905469383,-151.0,0.000249,2]
[408589735,1773905469392,-151.0,0.000249,2]
[408589736,1773905469402,-151.0,0.000249,2]
[408589737,1773905469412,-260.467406,0.000249,2]
[408589738,1773905469422,-202.54788,0.000249,2]
[408589739,1773905469434,-151.0,0.000249,2]
[408589740,1773905469443,-260.467406,0.000249,2]
[408589741,1773905469453,-151.0,0.000249,2]
[408589742,1773905469464,-260.467406,0.000249,2]
[408589743,1773905469474,-151.0,0.000249,2]
[408589744,1773905469484,-151.0,0.000249,2]
[408589745,1773905469494,-151.0,0.000249,2]
[408589746,1773905469503,-260.467406,0.000249,2]
[408589747,1773905469513,-151.0,0.000249,2]
[408589748,1773905469523,-243.239699,0.000249,2]
[408589749,1773905469533,-154.012916,0.000249,2]
[408589750,1773905469546,-527.066914,0.000249,2]
[408589751,1773905469556,-151.0,0.000249,2]
[408589752,1773905469566,-154.012916,0.000249,2]
[408589753,1773905469575,-151.0,0.000249,2]
[408589754,1773905469587,-151.0,0.000249,2]
[408589755,1773905469596,-527.066914,0.000249,2]
[408589756,1773905469606,-288.438486,0.000249,2]
[408589757,1773905469618,-260.113054,0.000249,2]
[408589758,1773905469628,-154.012916,0.000249,2]
[408589759,1773905469637,-151.0,0.000249,2]
[408589760,1773905469647,-527.066914,0.000249,2]
[408589761,1773905469656,-260.113054,0.000249,2]
[408589762,1773905469666,-151.0,0.000249,2]
[408589763,1773905469675,-154.012916,0.000249,2]
[408589764,1773905469688,-527.066914,0.000249,2]
[408589765,1773905469697,-2612.845104,0.000249,2]
[408589766,1773905469707,-260.113054,0.000249,2]
[408589767,1773905469717,-260.113054,0.000249,2]
[408589768,1773905469727,-2612.845104,0.000249,2]
[408589769,1773905469736,-295.17233,0.000249,2]
[408589770,1773905469746,-2612.845104,0.000249,2]
[408589771,1773905469755,-295.17233,0.000249,2]
[408589772,1773905469765,-399.930461,0.000249,2]
[408589773,1773905469774,-2612.845104,0.000249,2]
[408589774,1773905469784,-295.17233,0.000249,2]
[408589775,1773905469793,-151.0,0.000249,2]
[408589776,1773905469804,-399.930461,0.000249,2]
[408589777,1773905469813,-295.17233,0.000249,2]
[408589778,1773905469823,-151.0,0.000249,2]
[408589779,1773905469832,-399.930461,0.000249,2]
[408589780,1773905469842,-399.930461,0.000249,2]
[408589781,1773905469852,-237.17071,0.000249,2]
[408589782,1773905469861,-151.0,0.000249,2]
[408589783,1773905469872,-151.0,0.000249,2]
[408589784,1773905470186,-237.17071,0.000249,2]
[408589785,1773905470199,-151.0,0.000249,2]
[408589786,1773905470210,-151.0,0.000249,2]
[408589787,1773905470219,-237.17071,0.000249,2]
[408589788,1773905470229,-237.17071,0.000249,2]
[408589789,1773905470239,-903.645752,0.000249,2]
[408589790,1773905470249,-903.645752,0.000249,2]
[408589791,1773905470259,-903.645752,0.000249,2]
[408589792,1773905470269,-903.645752,0.000249,2]
[408589793,1773905470279,-151.0,0.000249,2]
[408589794,1773905470289,-151.0,0.000249,2]
[408589795,1773905470299,-169.18771,0.000249,2]
[408589796,1773905470308,-151.0,0.000249,2]
[408589797,1773905470318,-151.0,0.000249,2]
[408589798,1773905470327,-169.18771,0.000249,2]
[408589799,1773905470337,-176.673456,0.000249,2]
[408589800,1773905470347,-151.0,0.000249,2]
[408589801,1773905470356,-169.18771,0.000249,2]
[408589802,1773905470365,-151.0,0.000249,2]
[408589803,1773905470374,-176.673456,0.000249,2]
[408589804,1773905470384,-151.0,0.000249,2]
[408589805,1773905470394,-151.0,0.000249,2]
[408589806,1773905470403,-169.18771,0.000249,2]
[408589807,1773905470413,-151.0,0.000249,2]
[408589808,1773905470422,-176.673456,0.000249,2]
[408589809,1773905470432,-176.673456,0.000249,2]